bitfinex/quotes_ETHUSD_20250909
["timestamp","ask_amount","ask_price","bid_price","bid_amount"]
[1757406649398,5.89914216,4357.8,4357.7,41.86212543]
[1757406649839,5.89914216,4357.8,4357.7,37.98312543]
[1757406650137,5.89914216,4357.8,4357.7,11.86212543]
[1757406650541,5.89914216,4357.8,4357.7,41.86212543]
[1757406651238,5.89914216,4357.8,4357.7,11.86212543]
[1757406651607,5.89914216,4357.8,4357.7,41.86212543]
[1757406652251,5.42594216,4357.8,4357.7,41.86212543]
[1757406653721,3.63534216,4357.8,4357.7,41.86212543]
[1757406655244,3.34234216,4357.8,4357.7,41.86212543]
[1757406655439,3.34154216,4357.8,4357.7,41.86212543]
[1757406656328,3.34154216,4357.8,4357.7,42.16542543]
[1757406656532,3.34154216,4357.8,4357.7,44.03892543]
[1757406656732,3.34154216,4357.8,4357.7,44.50392543]
[1757406658314,3.34154216,4357.8,4357.7,43.40992544]
[1757406660425,3.34154216,4357.8,4357.7,44.78692544]
[1757406660843,1e-08,4357.9,4357.8,7.46373587]
[1757406661141,11.07,4358.2,4357.8,7.46373587]
[1757406661142,3.16183993,4358.2,4358.1,7.69327791]
[1757406661332,3.16183993,4358.2,4358.1,51.61297791]
[1757406662034,0.025,4358.8,4358.2,5.3987]
[1757406662232,0.025,4358.8,4358.5,5.3987]
[1757406662420,0.025,4358.8,4358.7,4.3219]
[1757406662753,0.025,4358.8,4358.7,36.61616205]
[1757406662938,0.025,4358.8,4358.7,37.07422075]
[1757406663347,0.025,4358.8,4358.7,40.94922075]
[1757406663553,0.025,4358.8,4358.7,41.41772075]
[1757406663753,0.025,4358.8,4358.7,40.94922075]
[1757406664329,0.025,4358.8,4358.7,37.07422075]
[1757406664851,0.025,4358.8,4358.7,40.94722075]
[1757406665264,0.025,4358.8,4358.7,39.11730038]
[1757406665444,0.025,4358.8,4358.7,42.69010038]
[1757406665647,0.025,4358.8,4358.7,42.99030038]
[1757406666277,0.025,4358.8,4358.7,43.22000038]
[1757406667848,0.025,4358.8,4358.7,39.34700038]
[1757406668027,0.025,4358.8,4358.7,43.21900038]
[1757406668225,0.025,4358.8,4358.7,43.68750038]
[1757406669336,0.025,4358.8,4358.7,11.64442075]
[1757406669536,0.025,4358.8,4358.7,41.64442075]
[1757406669976,0.025,4358.8,4358.7,43.68750038]
[1757406670332,0.025,4358.8,4358.7,43.21900038]
[1757406670642,0.025,4358.8,4358.7,43.68750038]
[1757406670831,0.025,4358.8,4358.7,43.80190038]
[1757406671256,0.025,4358.8,4358.7,39.92990038]
[1757406671477,0.025,4358.8,4358.7,41.75682075]
[1757406671837,0.025,4358.8,4358.7,45.34300641]
[1757406672944,2.3738,4359.5,4359.2,2.29396342]
[1757406673211,0.025,4359.8,4359.7,3.0857358]
[1757406673355,0.025,4359.8,4359.7,39.9577358]
[1757406673690,2.2208,4359.8,4359.7,10.64544405]
[1757406673996,2.6922,4359.8,4359.7,10.64544405]
[1757406674155,2.6922,4359.8,4359.7,40.64544405]
[1757406675141,0.3184,4359.8,4359.7,40.64544405]
[1757406675967,0.3184,4359.8,4359.7,36.77344405]
[1757406676166,0.3184,4359.8,4359.7,40.87314405]
[1757406676363,0.3184,4359.8,4359.7,37.00314405]
[1757406676573,0.3184,4359.8,4359.7,40.87214405]
[1757406678405,0.025,4359.8,4359.7,41.17234405]
[1757406678568,8.3050353,4359.9,4359.8,6.08568319]
[1757406678884,4.02189358,4359.9,4359.8,36.08568319]
[1757406679086,4.02189358,4359.9,4359.8,36.38588319]
[1757406679261,3.99689358,4359.9,4359.8,36.85438319]
[1757406679496,2.42192888,4359.9,4359.8,36.85438319]
[1757406679888,12.2138,4360.5,4360.4,3.08536758]
[1757406680188,12.5072,4360.5,4360.4,41.71336758]
[1757406680689,12.5072,4360.5,4360.4,42.40096865]
[1757406680861,12.0358,4360.5,4360.4,42.40096865]
[1757406681068,11.9858,4360.5,4360.4,42.40096865]
[1757406681383,12.4572,4360.5,4360.4,42.40096865]
[1757406681564,12.4564,4360.5,4360.4,42.40096865]
[1757406681986,12.4564,4360.5,4360.4,42.51536865]
[1757406684273,10.0826,4360.5,4360.4,42.51536865]
[1757406684473,9.7892,4360.5,4360.4,42.51536865]
[1757406684985,5.0643059,4360.5,4360.4,42.81556865]
[1757406685187,3.90609358,4360.5,4360.4,42.81556865]
[1757406685504,3.90609358,4360.5,4360.4,43.04526865]
[1757406685716,4.19949358,4360.5,4360.4,36.35400107]
[1757406685930,6.57329358,4360.5,4360.4,40.22000107]
[1757406686074,6.57329358,4360.5,4360.4,42.51336865]
[1757406686508,6.57329358,4360.5,4360.4,38.64736865]
[1757406686710,6.57329358,4360.5,4360.4,42.51336865]
[1757406689713,3.90609358,4360.5,4360.4,42.51336865]
[1757406690208,3.90609358,4360.5,4360.4,43.35595431]
[1757406690507,4.19949358,4360.5,4360.4,42.82605431]
[1757406690678,4.19949358,4360.5,4360.4,42.51336865]
[1757406690679,6.57329358,4360.5,4360.4,42.51336865]
[1757406691207,6.57329358,4360.5,4360.4,39.42800107]
[1757406691397,6.57329358,4360.5,4360.4,41.72136865]
[1757406691597,6.57329358,4360.5,4360.4,39.42800107]
[1757406691798,6.57329358,4360.5,4360.4,41.03376758]
[1757406692504,6.57329358,4360.5,4360.4,34.8744]
[1757406692708,6.57329358,4360.5,4360.4,38.7404]
[1757406693531,6.57329358,4360.5,4360.4,41.03376758]
[1757406694406,4.19949358,4360.5,4360.4,41.03376758]
[1757406694800,4.19949358,4360.5,4360.4,37.16776758]
[1757406695008,4.19949358,4360.5,4360.4,41.03376758]
[1757406695623,6.55899358,4360.5,4360.4,38.7404]
[1757406695795,6.55899358,4360.5,4360.4,41.03376758]
[1757406696222,6.55899358,4360.5,4360.4,42.12776757]
[1757406698727,6.55899358,4360.5,4360.4,42.12676757]
[1757406698927,6.55899358,4360.5,4360.4,39.83339999]
[1757406699226,6.55899358,4360.5,4360.4,1.8744]
[1757406699227,7.21489294,4360.5,4360.4,1.8744]
[1757406699455,7.21489294,4360.5,4360.4,8.7394]
[1757406701031,7.21489294,4360.5,4360.4,4.8744]
[1757406701222,7.21489294,4360.5,4360.4,8.7394]
[1757406701627,7.21489294,4360.5,4360.4,4.8744]
[1757406701835,7.21489294,4360.5,4360.4,8.7394]
[1757406703051,6.55899358,4360.5,4360.4,8.7394]
[1757406707736,6.55819358,4360.5,4360.4,8.7394]
[1757406711950,8.85150856,4360.5,4360.4,8.625]
[1757406713940,6.55819358,4360.5,4360.4,8.625]
[1757406714144,8.85150856,4360.5,4360.4,8.625]
[1757406714351,9.96598117,4360.5,4360.4,8.625]
[1757406714552,4.19869358,4360.5,4360.4,8.625]
[1757406714772,4.19869358,4360.5,4360.4,8.7394]
[1757406715542,3.90529358,4360.5,4360.4,9.0367]
[1757406715774,3.90529358,4360.5,4360.4,8.7394]
[1757406715999,4.20549358,4360.5,4360.4,8.7394]
[1757406716492,6.49880856,4360.5,4360.4,8.7394]
[1757406716781,6.56499358,4360.5,4360.4,8.7394]
[1757406718803,9.51870499,4360.5,4360.4,8.7394]
[1757406718962,9.51870499,4360.5,4360.4,8.625]
[1757406722496,7.15920499,4360.5,4360.4,8.625]
[1757406722892,4.86589001,4360.5,4360.4,8.625]
[1757406723394,3.90529358,4360.5,4360.4,8.625]
[1757406723593,3.90629358,4360.5,4360.4,9.0288]
[1757406726413,4.19269358,4360.5,4360.4,8.7394]
[1757406727024,3.90629358,4360.5,4360.4,8.7394]
[1757406733797,3.90549358,4360.5,4360.4,11.2888]
[1757406734019,3.90549358,4360.5,4360.4,14.00925324]
[1757406734222,0.04,4360.9,4360.6,2.29325653]
[1757406734535,0.04,4360.9,4360.8,3.0]
[1757406734738,0.04,4360.9,4360.8,3.2894]
[1757406734935,0.04,4360.9,4360.8,3.4038]
[1757406735096,0.04,4360.9,4360.8,5.7782]
[1757406736535,0.04,4360.9,4360.8,3.848]
[1757406736741,0.04,4360.9,4360.8,3.4038]
[1757406739663,0.04,4360.9,4360.8,0.1144]
[1757406739664,2.7725,4360.9,4360.8,0.1144]
[1757406739843,2.7725,4360.9,4360.8,3.9784]
[1757406740140,3.40204915,4360.9,4360.8,3.1144]
[1757406740340,3.40204915,4360.9,4360.8,6.9784]
[1757406740638,2.7725,4360.9,4360.8,6.9784]
[1757406741203,2.3333,4360.9,4360.8,6.9784]
[1757406741565,0.3264,4360.9,4360.8,6.9784]
[1757406745768,0.04,4360.9,4360.8,6.9784]
[1757406747048,2.7725,4360.9,4360.8,6.9784]
[1757406747733,0.3264,4360.9,4360.8,6.9784]
[1757406747944,0.04,4360.9,4360.8,7.712]
[1757406749484,0.04,4360.9,4360.8,7.2678]
[1757406752583,0.04,4360.9,4360.8,6.9784]
[1757406753101,0.3362,4360.9,4360.8,3.9784]
[1757406753390,5.11440463,4360.9,4360.8,6.9774]
[1757406756469,4.67810463,4360.9,4360.8,6.9774]
[1757406756956,5.11440463,4360.9,4360.8,3.1144]
[1757406757281,5.11440463,4360.9,4360.8,6.9774]
[1757406759088,2.75630463,4360.9,4360.8,6.9774]
[1757406760054,2.75550463,4360.9,4360.8,6.9774]
[1757406760287,2.75650463,4360.9,4360.8,6.9774]
[1757406760648,2.46030463,4360.9,4360.8,7.2849]
[1757406761168,2.75650463,4360.9,4360.8,6.9774]
[1757406761593,5.11460463,4360.9,4360.8,3.1144]
[1757406761754,2.29326239,4360.6,4360.5,0.002]
[1757406761953,2.40766239,4360.6,4360.5,0.002]
[1757406762155,5.06196239,4360.6,4360.5,0.002]
[1757406762961,8.92396239,4360.6,4360.5,0.002]
[1757406777688,8.80956239,4360.6,4360.5,0.002]
[1757406777887,10.25224089,4360.6,4360.5,0.002]
[1757406780931,2.46030463,4360.9,4360.5,5.7979]
[1757406780932,0.0402,4360.9,4360.5,5.7979]
[1757406781138,0.0402,4360.9,4360.6,2.4884]
[1757406781311,2.33331941,4360.9,4360.6,2.4884]
[1757406781509,0.0402,4360.9,4360.8,0.3145]
[1757406781741,0.0402,4360.9,4360.8,5.6936]
[1757406781939,2.33330463,4360.9,4360.8,5.6936]
[1757406782937,0.0402,4360.9,4360.8,5.6936]
[1757406783336,2.33330463,4360.9,4360.8,5.6936]
[1757406783835,0.0402,4360.9,4360.8,5.6936]
[1757406785747,0.0402,4360.9,4360.8,9.5546]
[1757406786120,0.0394,4360.9,4360.8,9.5546]
[1757406787746,0.0394,4360.9,4360.8,9.669]
[1757406787950,1.23,4361.1,4360.8,9.669]
[1757406787951,1.23,4361.1,4360.9,3.0]
[1757406788152,1.23,4361.1,4361.0,1.76]
[1757406788324,1.23,4361.1,4361.0,7.4536]
[1757406789815,1.23,4361.1,4361.0,7.57001436]
[1757406790836,1.23,4361.1,4361.0,8.257617]
[1757406796426,1.23,4361.1,4361.0,12.116617]
[1757406796850,1.23,4361.1,4361.0,8.257617]
[1757406797048,1.23,4361.1,4361.0,12.116617]
[1757406798054,1.23,4361.1,4361.0,10.55066905]
[1757406798222,1.23,4361.1,4361.0,12.116617]
[1757406798754,1.231,4361.1,4361.0,12.116617]
[1757406800071,1.231,4361.1,4361.0,14.40966905]
[1757406800256,8.87789358,4361.4,4361.2,0.792]
[1757406800454,8.87789358,4361.4,4361.3,39.94389432]
[1757406800658,8.87789358,4361.4,4361.3,42.75189432]
[1757406801884,8.87789358,4361.4,4361.3,40.459]
[1757406802082,8.87789358,4361.4,4361.3,42.75189432]
[1757406805594,8.87789358,4361.4,4361.3,40.459]
[1757406805887,8.87789358,4361.4,4361.3,42.75189432]
[1757406806087,8.87789358,4361.4,4361.3,43.84589431]
[1757406806443,8.87789358,4361.4,4361.3,13.84589431]
[1757406806789,8.87789358,4361.4,4361.3,41.55299999]
[1757406807000,8.87789358,4361.4,4361.3,43.84589431]
[1757406807482,3.75374534,4361.4,4361.3,41.55299999]
[1757406807667,2.99478716,4361.4,4361.3,41.55299999]
[1757406807874,2.99478716,4361.4,4361.3,43.41509431]
[1757406808039,2.99478716,4361.4,4361.3,42.75189432]
[1757406808040,1.85672593,4361.4,4361.3,42.75189432]
[1757406808236,47.16177769,4361.7,4361.3,43.06457998]
[1757406808440,42.24127365,4361.7,4361.6,6.19913661]
[1757406808667,42.24127365,4361.7,4361.6,42.74973661]
[1757406808943,42.24127365,4361.7,4361.6,43.43710923]
[1757406810949,42.24127365,4361.7,4361.6,13.66630923]
[1757406811199,42.24127365,4361.7,4361.6,43.66630923]
[1757406812312,39.95023185,4361.7,4361.6,44.92890923]
[1757406812502,34.56641449,4361.7,4361.6,44.92890923]
[1757406813097,34.56641449,4361.7,4361.6,45.24159489]
[1757406814609,34.56641449,4361.7,4361.6,44.92890923]
[1757406816311,34.56641449,4361.7,4361.6,46.96740092]
[1757406817088,34.56641449,4361.7,4361.6,16.96740092]
[1757406817595,34.56741449,4361.7,4361.6,46.96740092]
[1757406818105,34.56741449,4361.7,4361.6,16.96740092]
[1757406818312,34.56741449,4361.7,4361.6,14.92890923]
[1757406818495,30.92677933,4361.7,4361.6,44.92890923]
[1757406818688,28.68430807,4361.7,4361.6,44.92890923]
[1757406818885,28.68430807,4361.7,4361.6,44.92790923]
[1757406819080,28.68430807,4361.7,4361.6,42.63517262]
[1757406819504,27.69754982,4361.7,4361.6,44.92790923]
[1757406820432,23.11542581,4361.7,4361.6,44.92790923]
[1757406821123,20.82438453,4361.7,4361.6,41.17080923]
[1757406821738,23.09648453,4361.7,4361.6,36.20930923]
[1757406822037,23.53378453,4361.7,4361.6,40.62710923]
[1757406822208,23.53378453,4361.7,4361.6,39.94950923]
[1757406822736,23.53378453,4361.7,4361.6,31.89577261]
[1757406822920,23.53378453,4361.7,4361.6,35.75077261]
[1757406823123,23.53378453,4361.7,4361.6,38.75077261]
[1757406823905,23.53378453,4361.7,4361.6,41.04350922]
[1757406824702,23.53378453,4361.7,4361.6,38.75077261]
[1757406824901,23.53378453,4361.7,4361.6,34.89577261]
[1757406825461,23.53378453,4361.7,4361.6,38.75077261]
[1757406825749,23.09648453,4361.7,4361.6,38.75077261]
[1757406825955,23.53378453,4361.7,4361.6,38.75077261]
[1757406826560,23.53378453,4361.7,4361.6,34.89577261]
[1757406826720,23.53378453,4361.7,4361.6,38.75077261]
[1757406826902,23.53378453,4361.7,4361.6,37.65677262]
[1757406827102,23.53378453,4361.7,4361.6,37.65577262]
[1757406827308,25.8016925,4361.7,4361.6,3.854]
[1757406827704,28.09438696,4361.7,4361.6,3.854]
[1757406830825,2.29289432,4361.3,4361.2,0.68756482]
[1757406831133,2.29289432,4361.3,4361.0,0.11641436]
[1757406831134,2.29299947,4361.1,4361.0,0.11641436]
[1757406831333,2.29305205,4361.0,4360.9,1.759]
[1757406831541,4.70355205,4361.0,4360.9,5.613]
[1757406831754,5.00245205,4361.0,4360.9,5.613]
[1757406832260,2.29310463,4360.9,4360.6,0.002]
[1757406832457,3.43098924,4360.9,4360.7,3.855]
[1757406832770,6.14038924,4360.9,4360.7,3.855]
[1757406832971,6.14038924,4360.9,4360.8,3.002]
[1757406833176,6.14038924,4360.9,4360.8,0.002]
[1757406837363,6.25478924,4360.9,4360.8,0.002]
[1757406838675,6.25398924,4360.9,4360.8,0.002]
[1757406844384,2.2932098,4360.7,4360.6,1e-08]
[1757406844585,6.1482098,4360.7,4360.6,1e-08]
[1757406844786,6.4410098,4360.7,4360.6,1e-08]
[1757406845006,2.29342605,4360.3,4359.8,0.025]
[1757406845210,2.29352537,4360.1,4359.8,0.025]
[1757406845369,2.58643058,4359.9,4359.8,0.025]
[1757406845775,5.04043058,4359.9,4359.8,0.025]
[1757406855816,5.04043058,4359.9,4359.8,0.027]
[1757406856249,2.7468,4359.9,4359.1,0.04]
[1757406856421,2.29399889,4359.2,4359.1,0.04]
[1757406856628,6.14899889,4359.2,4359.1,0.04]
[1757406856941,6.44179889,4359.2,4359.1,0.04]
[1757406859001,6.14899889,4359.2,4359.1,0.04]
[1757406859912,6.14899889,4359.2,4359.1,0.3541]
[1757406861711,2.29399889,4359.2,4359.1,0.3541]
[1757406862410,2.29399889,4359.2,4358.1,0.04]
[1757406862411,11.13929075,4359.2,4358.1,0.04]
[1757406862731,2.29452526,4358.2,4358.1,0.04]
[1757406862917,6.14952526,4358.2,4358.1,0.04]
[1757406863118,8.89632526,4358.2,4358.1,0.04]
[1757406863318,2.29468321,4357.9,4357.8,0.025]
[1757406863720,2.58748321,4357.9,4357.8,0.025]
[1757406864222,2.29468321,4357.9,4357.8,2.8092]
[1757406864631,2.29388321,4357.9,4357.8,5.8092]
[1757406865610,2.75387472,4358.7,4357.8,5.8092]
[1757406865611,2.29410415,4359.0,4357.9,3.0]
[1757406865809,3.855,4359.1,4358.0,2.4701]
[1757406866023,2.29457535,4358.2,4358.1,0.4496]
[1757406866349,2.29457535,4358.2,4358.1,5.7842]
[1757406866550,2.29457535,4358.2,4358.1,5.8986]
[1757406866760,2.29457535,4358.2,4358.1,9.7536]
[1757406867144,2.29457535,4358.2,4358.1,3.4285]
[1757406867529,2.29457535,4358.2,4358.1,3.8781]
[1757406867734,2.29457535,4358.2,4358.1,5.8986]
[1757406872079,2.29447284,4358.3,4358.2,3.0]
[1757406872234,2.29447284,4358.3,4358.2,5.7319]
[1757406872560,2.29447261,4358.3,4358.2,5.7319]
[1757406873034,2.2943149,4358.6,4358.2,5.7319]
[1757406873371,2.29447261,4358.3,4358.2,0.2921]
[1757406873775,2.29447261,4358.3,4358.2,2.7319]
[1757406873966,2.29443618,4358.4,4358.2,2.7319]
[1757406874170,2.29447261,4358.3,4358.2,0.2921]
[1757406874377,0.071,4374.2,4358.2,0.2921]
[1757406874378,2.29423531,4358.8,4358.2,0.2921]
[1757406874541,2.29422383,4358.8,4358.3,1.76]
[1757406874742,2.29422383,4358.8,4358.7,0.2921]
[1757406874970,2.29422383,4358.8,4358.7,0.7575]
[1757406876787,2.29416353,4358.9,4358.8,3.0]
[1757406876965,2.29416353,4358.9,4358.8,7.1471]
[1757406878588,0.1144,4359.5,4358.9,3.0]
[1757406878812,2.29409486,4359.1,4358.9,3.0]
[1757406878956,2.29409486,4359.1,4359.0,0.2921]
[1757406879287,2.29409486,4359.1,4359.0,0.7575]
[1757406879988,2.29409486,4359.1,4359.0,0.2921]
[1757406880706,2.29400481,4359.2,4359.0,0.2921]
[1757406881000,2.29390913,4359.4,4359.1,3.855]
[1757406881201,0.1144,4359.5,4359.3,0.2921]
[1757406881408,2.29389365,4359.4,4359.3,0.2921]
[1757406883205,2.29394627,4359.3,4359.2,3.0]
[1757406883710,2.29394627,4359.3,4359.2,3.2921]
[1757406884405,2.58804627,4359.3,4359.2,3.0]
[1757406884574,5.12204627,4359.3,4359.2,3.0]
[1757406884776,2.29417217,4358.9,4358.5,0.4654]
[1757406885075,2.29417217,4358.9,4358.8,0.1144]
[1757406885272,2.29432977,4358.6,4358.3,4.76]
[1757406885487,2.534,4358.9,4358.5,0.1144]
[1757406885700,0.1144,4359.2,4358.5,3.1144]
[1757406885701,0.2941,4358.6,4358.5,3.1144]
[1757406885899,2.29427882,4358.7,4358.5,3.1144]
[1757406886085,2.29427882,4358.7,4358.5,3.4065]
[1757406886476,2.29427882,4358.7,4358.5,3.1144]
[1757406887710,4.82805606,4359.1,4358.5,3.1144]
[1757406888215,2.29421253,4358.8,4358.5,3.1144]
[1757406888808,2.534,4359.1,4358.5,3.1144]
[1757406889000,2.29414307,4359.0,4358.7,0.2921]
[1757406889187,2.534,4359.1,4358.9,3.0]
[1757406889390,2.58820415,4359.0,4358.9,3.0]
[1757406891034,2.58740415,4359.0,4358.9,3.0]
[1757406894733,2.58840415,4359.0,4358.9,3.0]
[1757406897731,0.2951,4359.0,4358.9,3.0]
[1757406898037,2.58920415,4359.0,4358.9,3.0]
[1757406901400,5.02650415,4359.0,4358.9,3.0]
[1757406904135,2.58920415,4359.0,4358.9,3.0]
[1757406904335,0.2951,4359.0,4358.9,3.0]
[1757406904642,2.58920415,4359.0,4358.9,3.0]
[1757406905466,0.001,4359.0,4358.9,5.8078]
[1757406907072,0.026,4359.8,4358.9,5.8078]
[1757406907073,0.026,4359.8,4359.2,2.2939907]
[1757406907240,0.026,4359.8,4359.1,3.0]
[1757406907241,0.026,4359.8,4359.4,3.0]
[1757406907426,0.026,4359.8,4359.7,0.3159]
[1757406907631,0.026,4359.8,4359.7,7.1679]
[1757406907924,0.026,4359.8,4359.7,9.6598]
[1757406909172,0.026,4359.8,4359.7,11.9535358]
[1757406909671,0.026,4359.8,4359.7,41.9535358]
[1757406910269,0.026,4359.8,4359.7,43.59655837]
[1757406910569,0.026,4359.8,4359.7,41.9535358]
[1757406914149,0.026,4359.8,4359.7,39.6598]
[1757406914481,0.026,4359.8,4359.7,9.6598]
[1757406914678,0.026,4359.8,4359.7,39.6598]
[1757406915058,0.026,4359.8,4359.7,41.9535358]
[1757406915273,0.026,4359.8,4359.7,3.0]
[1757406915450,0.3183,4359.8,4359.7,6.851]
[1757406915650,0.026,4359.8,4359.7,6.851]
[1757406915978,0.026,4359.8,4359.7,7.1669]
[1757406917178,0.0252,4359.8,4359.7,7.2813]
[1757406920388,0.0252,4359.8,4359.7,6.9644]
[1757406920965,0.7709,4359.8,4359.7,6.9644]
[1757406921168,2.29374176,4359.7,4359.5,1.76]
[1757406921354,2.7548,4359.8,4359.5,1.76]
[1757406921355,5.5322426,4359.6,4359.5,1.76]
[1757406921673,5.5322426,4359.6,4359.5,8.61]
[1757406921878,5.5322426,4359.6,4359.5,5.61]
[1757406922066,5.5322426,4359.6,4359.5,8.61]
[1757406923924,5.5322426,4359.6,4359.5,6.85]
[1757406928094,5.5322426,4359.6,4359.5,3.0]
[1757406931597,5.5322426,4359.6,4358.8,1.762]
[1757406931598,2.29415678,4358.9,4358.8,1.762]
[1757406931803,5.03025678,4358.9,4358.8,3.851]
[1757406932614,5.03025678,4358.9,4358.8,0.002]
[1757406932789,5.03025678,4358.9,4358.8,3.002]
[1757406932990,5.76269103,4358.9,4358.8,3.002]
[1757406933175,5.74829103,4358.9,4358.8,3.002]
[1757406935889,5.74829103,4358.9,4358.8,0.002]
[1757406937334,9.59729103,4358.9,4358.8,0.002]
[1757406937820,3.01219103,4358.9,4358.8,0.002]
[1757406938025,6.12875678,4358.9,4358.8,0.2949]
[1757406938196,2.27975678,4358.9,4358.8,0.2949]
[1757406938398,2.27975678,4358.9,4358.8,0.7336]
[1757406939812,2.27975678,4358.9,4358.8,0.2949]
[1757406940828,2.29410583,4359.0,4358.8,0.7336]
[1757406941035,2.29405987,4359.1,4358.9,3.4387]
[1757406941329,2.29405987,4359.1,4359.0,0.2929]
[1757406942439,2.95395418,4359.6,4359.0,2.2667]
[1757406942440,0.50885418,4359.6,4359.0,2.2667]
[1757406942598,2.29380435,4359.6,4359.2,3.0]
[1757406942818,2.2937358,4359.7,4359.5,0.2929]
[1757406943016,2.2937358,4359.7,4359.6,7.2877]
[1757406943245,2.2929358,4359.7,4359.6,7.5806]
[1757406944237,2.43332514,4359.8,4359.7,3.0]
[1757406944638,2.43332514,4359.8,4359.7,3.2929]
[1757406946859,0.1396,4359.8,4359.7,0.7316]
[1757406947151,0.1396,4359.8,4359.7,3.7316]
[1757406947350,0.0252,4359.8,4359.7,5.7054]
[1757406948713,0.0252,4359.8,4359.7,0.7316]
[1757406948918,0.0252,4359.8,4359.7,3.2929]
[1757406949248,0.0252,4359.8,4359.7,5.0529]
[1757406949454,0.0252,4359.8,4359.7,8.9009]
[1757406949956,0.0252,4359.8,4359.7,9.3396]
[1757406950262,0.0252,4359.8,4359.7,5.0529]
[1757406950445,2.60988319,4359.8,4359.7,8.608]
[1757406950633,0.3162,4359.8,4359.7,8.608]
[1757406951018,0.0252,4359.8,4359.7,8.608]
[1757406951220,0.0252,4359.8,4359.7,8.9009]
[1757406954563,0.0252,4359.8,4359.7,9.3396]
[1757406954964,0.0252,4359.8,4359.7,11.3134]
[1757406956566,0.0252,4359.8,4359.7,43.7215358]
[1757406956860,0.0252,4359.8,4359.7,43.81324242]
[1757406957227,0.0252,4359.8,4359.7,13.81324242]
[1757406957565,0.0252,4359.8,4359.7,43.81324242]
[1757406960929,0.0252,4359.8,4359.7,41.74870662]
[1757406961157,0.0252,4359.8,4359.7,37.67150662]
[1757406961524,0.0252,4359.8,4359.7,39.54470662]
[1757406962568,0.0252,4359.8,4359.7,35.25900662]
[1757406962767,0.3337,4359.8,4359.7,8.607]
[1757406963159,0.0252,4359.8,4359.7,8.8971]
[1757406964936,0.0252,4359.8,4359.7,8.607]
[1757406965581,0.0252,4359.8,4359.7,8.8971]
[1757406965782,0.0252,4359.8,4359.7,11.1513]
[1757406966255,0.0252,4359.8,4359.7,9.3348]
[1757406967784,0.0252,4359.8,4359.7,8.8971]
[1757406967980,0.3337,4359.8,4359.7,4.76]
[1757406968185,0.3337,4359.8,4359.7,8.606]
[1757406968487,0.3337,4359.8,4359.7,4.76]
[1757406968680,0.0252,4359.8,4359.7,8.606]
[1757406969382,0.0244,4359.8,4359.7,8.606]
[1757406969586,0.3329,4359.8,4359.7,8.606]
[1757406970084,0.3329,4359.8,4359.7,4.76]
[1757406970249,2.6079,4359.8,4359.7,4.76]
[1757406970582,2.6079,4359.8,4359.7,8.606]
[1757406971481,2.1721,4359.8,4359.7,8.606]
[1757406971788,0.3329,4359.8,4359.7,8.606]
[1757406972675,0.0244,4359.8,4359.7,8.606]
[1757406972882,0.0244,4359.8,4359.7,8.7204]
[1757406973458,0.0244,4359.8,4359.7,9.4482]
[1757406974694,0.0244,4359.8,4359.7,9.0105]
[1757406974996,0.0244,4359.8,4359.7,8.7204]
[1757406975361,0.1144,4360.4,4359.7,8.7204]
[1757406975362,20.82338453,4361.7,4359.9,1.376]
[1757406975700,16.54558453,4361.7,4361.6,3.60403661]
[1757406975900,13.45327028,4361.7,4361.6,12.77552021]
[1757406976057,13.45327028,4361.7,4361.6,42.02383661]
[1757406976393,13.45327028,4361.7,4361.6,38.82218088]
[1757406976593,12.90352274,4361.7,4361.6,42.92901352]
[1757406977171,12.90352274,4361.7,4361.6,39.03501352]
[1757406977376,12.90352274,4361.7,4361.6,42.92901352]
[1757406977571,12.90352274,4361.7,4361.6,42.92801352]
[1757406978600,12.04501454,4361.7,4361.6,44.96702287]
[1757406978763,11.47267574,4361.7,4361.6,40.28202287]
[1757406978965,11.47267574,4361.7,4361.6,42.92701352]
[1757406979476,11.47267574,4361.7,4361.6,39.03501352]
[1757406979795,11.47267574,4361.7,4361.6,42.92601352]
[1757406981483,10.61416754,4361.7,4361.6,42.92601352]
[1757406981680,9.75565934,4361.7,4361.6,42.92601352]
[1757406981881,9.46948994,4361.7,4361.6,42.92601352]
[1757406982096,9.4684402,4361.7,4361.6,42.92601352]
[1757406983518,12.0519402,4361.7,4361.6,2.66017691]
[1757406983687,14.31984817,4361.7,4361.5,0.81502512]
[1757406983882,13.88404817,4361.7,4361.6,3.889]
[1757406984090,13.88404817,4361.7,4361.5,0.61135665]
[1757406984289,16.17673221,4361.7,4361.6,3.889]
[1757406984503,16.61253221,4361.7,4361.6,3.889]
[1757406984699,16.61353221,4361.7,4361.6,3.889]
[1757406984901,2.29278917,4361.5,4361.4,1.759]
[1757406985088,4.18592427,4361.5,4361.4,5.649]
[1757406985289,6.76942427,4361.5,4361.4,1.759]
[1757406985597,6.76942427,4361.5,4361.4,5.648]
[1757406985810,6.76942427,4361.5,4361.4,8.648]
[1757406987333,6.76942427,4361.5,4361.4,6.889]
[1757406988716,6.76942427,4361.5,4361.4,6.888]
[1757406995094,6.76942427,4361.5,4361.4,3.0]
[1757406995307,6.76942427,4361.5,4361.4,6.882]
[1757406995511,6.76862427,4361.5,4361.4,3.0]
[1757406996712,2.29294689,4361.2,4361.1,0.002]
[1757406997285,2.57864689,4361.2,4361.1,0.002]
[1757406997541,4.85804689,4361.2,4361.1,0.002]
[1757406997948,4.85804689,4361.2,4361.1,0.21461766]
[1757406999450,4.85804689,4361.2,4361.1,0.002]
[1757406999749,6.58784022,4361.2,4361.1,0.002]
[1757407005955,7.37984022,4361.2,4361.1,0.002]
[1757407011649,6.65134022,4361.2,4361.1,0.002]
[1757407011970,11.25084022,4361.2,4361.1,0.002]
[1757407013035,11.25084022,4361.2,4361.1,0.21532379]
[1757407018758,11.25084022,4361.2,4361.1,0.21565979]
[1757407018957,11.25084022,4361.2,4361.1,0.002]
[1757407020597,7.89374022,4361.2,4361.1,0.002]
[1757407020742,6.16394689,4361.2,4361.1,0.002]